[Event "*** Titled Tuesday Blitz"]
[Site "Chess.com"]
[Date "2018.11.06"]
[Round "5"]
[White "Rakhmanov_Aleksandr"]
[Black "SaraciNderim"]
[Result "1-0"]
[WhiteElo "2873"]
[BlackElo "2668"]
[TimeControl "180+2"]
[EndTime "14:07:44 PST"]
[Termination "Rakhmanov_Aleksandr won by resignation"]

1. c4 {[%clk 0:03:01.9]} 1... Nf6 {[%clk 0:02:49.4]} 2. Nc3 {[%clk 0:03:02.2]}
2... g6 {[%clk 0:02:49.1]} 3. g3 {[%clk 0:03:02.8]} 3... Bg7 {[%clk 0:02:50.1]}
4. Bg2 {[%clk 0:03:04.3]} 4... O-O {[%clk 0:02:51.6]} 5. d3 {[%clk 0:03:05.2]}
5... c6 {[%clk 0:02:51.9]} 6. e4 {[%clk 0:03:05.9]} 6... d6 {[%clk 0:02:49.1]}
7. Nge2 {[%clk 0:03:06.7]} 7... c5 {[%clk 0:02:50.5]} 8. O-O {[%clk 0:03:04.9]}
8... Nc6 {[%clk 0:02:51.8]} 9. h3 {[%clk 0:03:05.3]} 9... Ne8 {[%clk 0:02:52.4]}
10. f4 {[%clk 0:03:05.4]} 10... Nc7 {[%clk 0:02:53.4]} 11. g4 {[%clk 0:03:05.6]}
11... Ne6 {[%clk 0:02:54.3]} 12. f5 {[%clk 0:03:06]} 12... Ned4 {[%clk
0:02:55.5]} 13. Ng3 {[%clk 0:03:04]} 13... Be5 {[%clk 0:02:54.2]} 14. Bf4 {[%clk
0:03:02.8]} 14... e6 {[%clk 0:02:49.6]} 15. Qd2 {[%clk 0:03:02.1]} 15... Qh4
{[%clk 0:02:47.8]} 16. Nce2 {[%clk 0:02:53.4]} 16... Bxf4 {[%clk 0:02:41.8]} 17.
Qxf4 {[%clk 0:02:36.6]} 17... Bd7 {[%clk 0:02:22]} 18. Qxd6 {[%clk 0:02:27.3]}
18... Rad8 {[%clk 0:02:12.3]} 19. Qf4 {[%clk 0:01:58.8]} 19... Bc8 {[%clk
0:01:53.8]} 20. Rad1 {[%clk 0:01:51.6]} 20... Nb4 {[%clk 0:01:32]} 21. Nxd4
{[%clk 0:01:12.8]} 21... Rxd4 {[%clk 0:01:33.9]} 22. fxg6 {[%clk 0:01:04.7]}
22... hxg6 {[%clk 0:01:30.8]} 23. Rf3 {[%clk 0:01:05.4]} 23... b6 {[%clk
0:01:19.7]} 24. a3 {[%clk 0:01:01.6]} 24... Nc6 {[%clk 0:01:16.4]} 25. Rdf1
{[%clk 0:00:44]} 25... e5 {[%clk 0:01:11.1]} 26. Qe3 {[%clk 0:00:33.9]} 26...
Be6 {[%clk 0:01:11.4]} 27. Nf5 {[%clk 0:00:27.6]} 27... gxf5 {[%clk 0:00:57.3]}
28. gxf5 {[%clk 0:00:27.3]} 28... Bd7 {[%clk 0:00:56.5]} 29. Rg3+ {[%clk
0:00:28]} 29... Kh7 {[%clk 0:00:56.6]} 30. Rg4 {[%clk 0:00:27.8]} 30... Qh6
{[%clk 0:00:54.6]} 31. Qg3 {[%clk 0:00:23]} 31... Rd6 {[%clk 0:00:28.3]} 32. Rh4
{[%clk 0:00:23.8]} 32... Rg8 {[%clk 0:00:27.6]} 33. Rxh6+ {[%clk 0:00:24.8]}
33... Rxh6 {[%clk 0:00:29.5]} 34. Qh2 {[%clk 0:00:25.7]} 34... f6 {[%clk
0:00:28.1]} 35. Kf2 {[%clk 0:00:25.6]} 35... Nd4 {[%clk 0:00:28.8]} 36. Rg1
{[%clk 0:00:22.4]} 36... Be8 {[%clk 0:00:22.1]} 37. Bf1 {[%clk 0:00:22.9]} 37...
Rxg1 {[%clk 0:00:22.8]} 38. Qxg1 {[%clk 0:00:24.8]} 38... Rh5 {[%clk 0:00:23.3]}
39. Qg3 {[%clk 0:00:21.2]} 39... Rg5 {[%clk 0:00:23.6]} 40. Qh4+ {[%clk
0:00:21.4]} 40... Kg7 {[%clk 0:00:24.8]} 41. b4 {[%clk 0:00:21.1]} 41... Bh5
{[%clk 0:00:24.9]} 42. bxc5 {[%clk 0:00:20.8]} 42... bxc5 {[%clk 0:00:26.8]} 43.
Ke3 {[%clk 0:00:22]} 43... Nf3 {[%clk 0:00:26.7]} 44. Qf2 {[%clk 0:00:22.5]}
44... Nd4 {[%clk 0:00:25.9]} 45. Qb2 {[%clk 0:00:24]} 45... Rg3+ {[%clk
0:00:25.2]} 46. Kf2 {[%clk 0:00:25.5]} 46... Rf3+ {[%clk 0:00:26.1]} 47. Kg2
{[%clk 0:00:25.4]} 47... Kh6 {[%clk 0:00:20.8]} 48. Qb8 {[%clk 0:00:25.7]} 48...
Nc2 {[%clk 0:00:20.3]} 49. Qh8+ {[%clk 0:00:24.4]} 49... Kg5 {[%clk 0:00:21.2]}
50. Qg7+ {[%clk 0:00:25.7]} 1-0

[Event "*** Titled Tuesday Blitz"]
[Site "Chess.com"]
[Date "2018.11.06"]
[Round "5"]
[White "Morshynska"]
[Black "Andrew-FB00"]
[Result "1-0"]
[WhiteElo "2072"]
[BlackElo "1783"]
[TimeControl "180+2"]
[EndTime "14:07:45 PST"]
[Termination "Morshynska won by resignation"]

1. d4 {[%clk 0:03:01.9]} 1... Nf6 {[%clk 0:03:00.1]} 2. c4 {[%clk 0:03:02.5]}
2... e6 {[%clk 0:03:00.6]} 3. Nf3 {[%clk 0:03:02.5]} 3... b6 {[%clk 0:02:55.7]}
4. g3 {[%clk 0:03:03.1]} 4... Bb7 {[%clk 0:02:55.9]} 5. Bg2 {[%clk 0:03:04]}
5... Be7 {[%clk 0:02:56.5]} 6. O-O {[%clk 0:03:04.5]} 6... d6 {[%clk 0:02:57.1]}
7. Nc3 {[%clk 0:03:01.7]} 7... Nbd7 {[%clk 0:02:57.4]} 8. Qc2 {[%clk 0:02:59.8]}
8... O-O {[%clk 0:02:56.6]} 9. e4 {[%clk 0:03:00.2]} 9... e5 {[%clk 0:02:54.4]}
10. d5 {[%clk 0:02:55.2]} 10... Re8 {[%clk 0:02:45.4]} 11. Ne1 {[%clk
0:02:47.1]} 11... a6 {[%clk 0:02:35.3]} 12. Nd3 {[%clk 0:02:41.9]} 12... Nh5
{[%clk 0:02:25.8]} 13. f4 {[%clk 0:02:33.5]} 13... Rf8 {[%clk 0:02:10.1]} 14.
Be3 {[%clk 0:02:20.6]} 14... Bf6 {[%clk 0:01:53.6]} 15. f5 {[%clk 0:02:13.4]}
15... Bg5 {[%clk 0:01:49.8]} 16. Bf2 {[%clk 0:02:09]} 16... h6 {[%clk
0:01:25.5]} 17. Ne2 {[%clk 0:01:40.7]} 17... Be7 {[%clk 0:01:15.1]} 18. g4
{[%clk 0:01:36.2]} 18... Nhf6 {[%clk 0:01:13.9]} 19. Bf3 {[%clk 0:01:31.1]}
19... Nh7 {[%clk 0:01:12.1]} 20. Kh1 {[%clk 0:01:17.8]} 20... Bh4 {[%clk
0:01:11.5]} 21. Ng3 {[%clk 0:01:13.3]} 21... Ng5 {[%clk 0:01:08.1]} 22. Bg2
{[%clk 0:01:13.7]} 22... Bxg3 {[%clk 0:01:03.7]} 23. Bxg3 {[%clk 0:01:12.9]}
23... f6 {[%clk 0:00:58.7]} 24. h4 {[%clk 0:01:12]} 24... Nf7 {[%clk 0:00:55.9]}
25. Bf3 {[%clk 0:01:08.7]} 25... Kh7 {[%clk 0:00:46.1]} 26. Bf2 {[%clk 0:01:08]}
26... Rh8 {[%clk 0:00:46.2]} 27. Be3 {[%clk 0:01:08.4]} 27... Nc5 {[%clk
0:00:40.8]} 28. b4 {[%clk 0:00:55.6]} 28... Nxd3 {[%clk 0:00:37.6]} 29. Qxd3
{[%clk 0:00:57.5]} 29... Qe7 {[%clk 0:00:33.9]} 30. Rg1 {[%clk 0:00:55.5]} 30...
Kg8 {[%clk 0:00:32]} 31. Rg3 {[%clk 0:00:53.2]} 31... Bc8 {[%clk 0:00:20.9]} 32.
a4 {[%clk 0:00:47.5]} 32... Bd7 {[%clk 0:00:20.9]} 33. a5 {[%clk 0:00:45.6]}
33... b5 {[%clk 0:00:21]} 34. c5 {[%clk 0:00:45.9]} 34... Kf8 {[%clk 0:00:20.3]}
35. Kg2 {[%clk 0:00:39.3]} 35... Rc8 {[%clk 0:00:18.5]} 36. Rc1 {[%clk
0:00:38.4]} 36... Nd8 {[%clk 0:00:15]} 37. Kf2 {[%clk 0:00:36.5]} 37... Nf7
{[%clk 0:00:15.1]} 38. Ke2 {[%clk 0:00:34.2]} 38... Kg8 {[%clk 0:00:15.5]} 39.
c6 {[%clk 0:00:30.4]} 39... Be8 {[%clk 0:00:15.5]} 40. Rcg1 {[%clk 0:00:29.4]}
40... Kf8 {[%clk 0:00:15.3]} 41. Kd2 {[%clk 0:00:30.3]} 41... Rg8 {[%clk
0:00:15.5]} 42. g5 {[%clk 0:00:24.2]} 42... fxg5 {[%clk 0:00:12.4]} 43. hxg5
{[%clk 0:00:26.1]} 43... hxg5 {[%clk 0:00:12.6]} 44. Bh5 {[%clk 0:00:21.2]}
44... Nh6 {[%clk 0:00:08]} 45. Bxg5 {[%clk 0:00:20.2]} 1-0

[Event "*** Titled Tuesday Blitz"]
[Site "Chess.com"]
[Date "2018.11.06"]
[Round "5"]
[White "DawidCzerw"]
[Black "Sordis"]
[Result "1/2-1/2"]
[WhiteElo "2245"]
[BlackElo "2289"]
[TimeControl "180+2"]
[EndTime "14:07:54 PST"]
[Termination "Game drawn - insufficient material"]

1. d4 {[%clk 0:03:01.9]} 1... Nf6 {[%clk 0:03:01]} 2. c4 {[%clk 0:03:03]} 2...
g6 {[%clk 0:03:01.8]} 3. Nc3 {[%clk 0:03:03.7]} 3... Bg7 {[%clk 0:03:03.2]} 4.
e4 {[%clk 0:03:04.3]} 4... d6 {[%clk 0:03:04.7]} 5. Be2 {[%clk 0:03:04.5]} 5...
O-O {[%clk 0:03:05.7]} 6. Nf3 {[%clk 0:03:06]} 6... Na6 {[%clk 0:03:06.1]} 7.
O-O {[%clk 0:03:05.3]} 7... e5 {[%clk 0:03:07.4]} 8. Be3 {[%clk 0:02:59.3]} 8...
Ng4 {[%clk 0:03:06.8]} 9. Bg5 {[%clk 0:02:58.8]} 9... Qe8 {[%clk 0:03:08.2]} 10.
Qd2 {[%clk 0:02:35.8]} 10... f6 {[%clk 0:03:05.5]} 11. Bh4 {[%clk 0:02:34.8]}
11... Nh6 {[%clk 0:03:02.3]} 12. dxe5 {[%clk 0:02:30.8]} 12... dxe5 {[%clk
0:03:02.1]} 13. Rad1 {[%clk 0:02:27.2]} 13... c6 {[%clk 0:03:01.7]} 14. Ne1
{[%clk 0:02:11.1]} 14... Nf7 {[%clk 0:02:59.3]} 15. f3 {[%clk 0:02:10]} 15...
Be6 {[%clk 0:02:49.7]} 16. Bf2 {[%clk 0:02:07.9]} 16... Qe7 {[%clk 0:02:48.6]}
17. Nc2 {[%clk 0:02:00]} 17... Rfd8 {[%clk 0:02:48.1]} 18. Qe1 {[%clk
0:01:48.8]} 18... Rxd1 {[%clk 0:02:43.3]} 19. Qxd1 {[%clk 0:01:44.1]} 19... Rd8
{[%clk 0:02:43.5]} 20. Qc1 {[%clk 0:01:40.9]} 20... b6 {[%clk 0:02:44.3]} 21.
Rd1 {[%clk 0:01:40]} 21... Bh6 {[%clk 0:02:45.7]} 22. Be3 {[%clk 0:01:29.4]}
22... Bxe3+ {[%clk 0:02:43.3]} 23. Qxe3 {[%clk 0:01:31.3]} 23... Rxd1+ {[%clk
0:02:42.7]} 24. Nxd1 {[%clk 0:01:31.4]} 24... Qc5 {[%clk 0:02:44]} 25. a3 {[%clk
0:01:19.3]} 25... Qxe3+ {[%clk 0:02:43.2]} 26. Ndxe3 {[%clk 0:01:17.6]} 26...
Kf8 {[%clk 0:02:34.5]} 27. b4 {[%clk 0:01:18.1]} 27... Nc7 {[%clk 0:02:32.3]}
28. Kf2 {[%clk 0:01:17.3]} 28... Ke7 {[%clk 0:02:30.5]} 29. b5 {[%clk
0:01:08.6]} 29... cxb5 {[%clk 0:02:29]} 30. cxb5 {[%clk 0:01:09.1]} 30... Nd6
{[%clk 0:02:29.7]} 31. a4 {[%clk 0:00:42.7]} 31... Kd7 {[%clk 0:02:15.5]} 32.
Nb4 {[%clk 0:00:39.9]} 32... Bb3 {[%clk 0:02:09.2]} 33. Bd1 {[%clk 0:00:36.3]}
33... Bxd1 {[%clk 0:02:04.7]} 34. Nxd1 {[%clk 0:00:38.2]} 34... Nc4 {[%clk
0:02:02.8]} 35. Nc3 {[%clk 0:00:32.4]} 35... a5 {[%clk 0:01:59.6]} 36. bxa6
{[%clk 0:00:28.9]} 36... Kd6 {[%clk 0:01:54.6]} 37. Nb5+ {[%clk 0:00:24.5]}
37... Kd7 {[%clk 0:01:48.6]} 38. Nd5 {[%clk 0:00:17.7]} 38... Nxa6 {[%clk
0:01:43.7]} 39. Ke2 {[%clk 0:00:15.1]} 39... f5 {[%clk 0:01:43.5]} 40. exf5
{[%clk 0:00:12.8]} 40... gxf5 {[%clk 0:01:43.4]} 41. g4 {[%clk 0:00:13.9]} 41...
fxg4 {[%clk 0:01:44.1]} 42. fxg4 {[%clk 0:00:15.8]} 42... Nc5 {[%clk 0:01:45.7]}
43. Nbc3 {[%clk 0:00:15.1]} 43... Ke6 {[%clk 0:01:42.2]} 44. Nc7+ {[%clk
0:00:12.6]} 44... Kf6 {[%clk 0:01:42.2]} 45. h4 {[%clk 0:00:13.3]} 45... e4
{[%clk 0:01:39.6]} 46. N7d5+ {[%clk 0:00:13.1]} 46... Ke5 {[%clk 0:01:40.2]} 47.
Ne3 {[%clk 0:00:14]} 47... Nd6 {[%clk 0:01:24.9]} 48. Ng2 {[%clk 0:00:11.1]}
48... Nb3 {[%clk 0:01:20.3]} 49. Ke3 {[%clk 0:00:06.1]} 49... Nc4+ {[%clk
0:01:20.5]} 50. Ke2 {[%clk 0:00:07.6]} 50... Nd4+ {[%clk 0:01:21.5]} 51. Kd1
{[%clk 0:00:08.4]} 51... e3 {[%clk 0:01:13.1]} 52. Nb5 {[%clk 0:00:07.9]} 52...
Nb2+ {[%clk 0:01:05.9]} 53. Ke1 {[%clk 0:00:08.7]} 53... Nxa4 {[%clk 0:01:06.6]}
54. Nxd4 {[%clk 0:00:08.5]} 54... Kxd4 {[%clk 0:01:08.1]} 55. g5 {[%clk
0:00:09.8]} 55... Nc3 {[%clk 0:01:07.5]} 56. h5 {[%clk 0:00:10.1]} 56... Ke5
{[%clk 0:01:00.1]} 57. g6 {[%clk 0:00:09.6]} 57... hxg6 {[%clk 0:01:00.5]} 58.
hxg6 {[%clk 0:00:10.4]} 58... Kf6 {[%clk 0:01:02]} 59. Nxe3 {[%clk 0:00:11.8]}
59... Kxg6 {[%clk 0:01:03]} 60. Kd2 {[%clk 0:00:13.1]} 60... Na4 {[%clk
0:01:03]} 61. Kc2 {[%clk 0:00:13.6]} 61... Kf7 {[%clk 0:01:01]} 62. Kb3 {[%clk
0:00:14.9]} 62... Nc5+ {[%clk 0:01:00.4]} 63. Kc4 {[%clk 0:00:16.3]} 63... Ke6
{[%clk 0:01:00.5]} 64. Kb5 {[%clk 0:00:17.6]} 64... Nd7 {[%clk 0:01:01.8]} 65.
Nc4 {[%clk 0:00:18.6]} 65... Kd5 {[%clk 0:01:02.5]} 66. Nxb6+ {[%clk 0:00:20.2]}
66... Nxb6 {[%clk 0:01:04]} 1/2-1/2

[Event "*** Titled Tuesday Blitz"]
[Site "Chess.com"]
[Date "2018.11.06"]
[Round "5"]
[White "TomsKantans"]
[Black "VladimirPotkin"]
[Result "0-1"]
[WhiteElo "2487"]
[BlackElo "2592"]
[TimeControl "180+2"]
[EndTime "14:07:59 PST"]
[Termination "VladimirPotkin won on time"]

1. e4 {[%clk 0:02:53.9]} 1... c5 {[%clk 0:03:00.2]} 2. Nf3 {[%clk 0:02:54.5]}
2... d6 {[%clk 0:03:01.4]} 3. Bb5+ {[%clk 0:02:52.3]} 3... Nd7 {[%clk
0:03:00.2]} 4. O-O {[%clk 0:02:52.4]} 4... a6 {[%clk 0:03:01.2]} 5. Bd3 {[%clk
0:02:52.5]} 5... Ngf6 {[%clk 0:03:01.8]} 6. c3 {[%clk 0:02:53]} 6... b5 {[%clk
0:03:00.2]} 7. a4 {[%clk 0:02:53.1]} 7... b4 {[%clk 0:02:58.8]} 8. Qe2 {[%clk
0:02:50]} 8... Bb7 {[%clk 0:02:59.4]} 9. Bc2 {[%clk 0:02:33.6]} 9... g6 {[%clk
0:02:44.3]} 10. cxb4 {[%clk 0:02:33.2]} 10... cxb4 {[%clk 0:02:44.7]} 11. d4
{[%clk 0:02:34.4]} 11... e6 {[%clk 0:02:13.4]} 12. Nbd2 {[%clk 0:02:22.7]} 12...
Rc8 {[%clk 0:02:14]} 13. Bd3 {[%clk 0:02:23.5]} 13... a5 {[%clk 0:02:10.4]} 14.
Nb3 {[%clk 0:02:18.9]} 14... Bg7 {[%clk 0:02:09.5]} 15. Bf4 {[%clk 0:02:10.7]}
15... Qb6 {[%clk 0:02:09.4]} 16. Nfd2 {[%clk 0:02:04.1]} 16... d5 {[%clk
0:02:01]} 17. e5 {[%clk 0:01:57.9]} 17... Ng8 {[%clk 0:01:42.9]} 18. Rfc1 {[%clk
0:01:30.9]} 18... Ne7 {[%clk 0:01:43.1]} 19. Bb5 {[%clk 0:01:31.9]} 19... Nc6
{[%clk 0:01:30.6]} 20. Be3 {[%clk 0:01:27]} 20... O-O {[%clk 0:01:29.5]} 21. Rc2
{[%clk 0:00:52.3]} 21... Rc7 {[%clk 0:01:04.8]} 22. Rac1 {[%clk 0:00:52.7]}
22... Rfc8 {[%clk 0:01:06.3]} 23. Qd3 {[%clk 0:00:53.5]} 23... Bf8 {[%clk
0:01:05.5]} 24. f4 {[%clk 0:00:52.5]} 24... Ncb8 {[%clk 0:00:53.7]} 25. Kf2
{[%clk 0:00:47.6]} 25... Bc6 {[%clk 0:00:43.9]} 26. Bxc6 {[%clk 0:00:39]} 26...
Rxc6 {[%clk 0:00:45.8]} 27. Rxc6 {[%clk 0:00:34.6]} 27... Rxc6 {[%clk
0:00:47.2]} 28. Qb5 {[%clk 0:00:30.9]} 28... Qxb5 {[%clk 0:00:35.4]} 29. axb5
{[%clk 0:00:31.2]} 29... Rxc1 {[%clk 0:00:36.9]} 30. Nxc1 {[%clk 0:00:33.1]}
30... a4 {[%clk 0:00:37.4]} 31. Ke2 {[%clk 0:00:25.7]} 31... Nb6 {[%clk
0:00:38.8]} 32. Kd3 {[%clk 0:00:27]} 32... Be7 {[%clk 0:00:38.4]} 33. b3 {[%clk
0:00:19.8]} 33... a3 {[%clk 0:00:30.5]} 34. Na2 {[%clk 0:00:20.9]} 34... Kf8
{[%clk 0:00:30.5]} 35. Nb1 {[%clk 0:00:19.7]} 35... Nc8 {[%clk 0:00:27.1]} 36.
Bd2 {[%clk 0:00:20.1]} 36... Na7 {[%clk 0:00:27.9]} 37. Nxb4 {[%clk 0:00:11.1]}
37... Nxb5 {[%clk 0:00:29.1]} 38. Na2 {[%clk 0:00:10]} 38... Ke8 {[%clk
0:00:30.2]} 39. Nbc3 {[%clk 0:00:10.5]} 39... Nxc3 {[%clk 0:00:29.3]} 40. Bxc3
{[%clk 0:00:11.9]} 40... Kd7 {[%clk 0:00:30.8]} 41. b4 {[%clk 0:00:09]} 41...
Kc6 {[%clk 0:00:30.5]} 42. Kc2 {[%clk 0:00:10.4]} 42... Kb5 {[%clk 0:00:28.8]}
43. Kb3 {[%clk 0:00:11.8]} 43... Nc6 {[%clk 0:00:30.5]} 44. g4 {[%clk
0:00:10.6]} 44... h6 {[%clk 0:00:29.2]} 45. h3 {[%clk 0:00:11.3]} 45... h5
{[%clk 0:00:29.2]} 46. gxh5 {[%clk 0:00:12.6]} 46... gxh5 {[%clk 0:00:31.1]} 47.
Kxa3 {[%clk 0:00:08.9]} 47... Kc4 {[%clk 0:00:32.2]} 48. Ka4 {[%clk 0:00:07.8]}
48... Nxd4 {[%clk 0:00:28.7]} 49. Bxd4 {[%clk 0:00:05.4]} 49... Kxd4 {[%clk
0:00:30.6]} 50. Kb5 {[%clk 0:00:03.6]} 50... Ke3 {[%clk 0:00:28.7]} 51. Kc6
{[%clk 0:00:04.8]} 51... d4 {[%clk 0:00:26.8]} 52. b5 {[%clk 0:00:05.7]} 52...
Bd8 {[%clk 0:00:27.5]} 0-1

[Event "*** Titled Tuesday Blitz"]
[Site "Chess.com"]
[Date "2018.11.06"]
[Round "5"]
[White "Caterpiller35"]
[Black "evgenysharapov"]
[Result "0-1"]
[WhiteElo "2274"]
[BlackElo "2406"]
[TimeControl "180+2"]
[EndTime "14:08:05 PST"]
[Termination "evgenysharapov won by checkmate"]

1. d4 {[%clk 0:02:30.8]} 1... d5 {[%clk 0:02:59.1]} 2. Bf4 {[%clk 0:02:31]} 2...
Nf6 {[%clk 0:02:58.7]} 3. e3 {[%clk 0:02:31.2]} 3... c5 {[%clk 0:02:59]} 4. c3
{[%clk 0:02:27.4]} 4... cxd4 {[%clk 0:02:57.4]} 5. cxd4 {[%clk 0:02:26.8]} 5...
Nc6 {[%clk 0:02:57.6]} 6. Nc3 {[%clk 0:02:24.3]} 6... a6 {[%clk 0:02:57.9]} 7.
Bd3 {[%clk 0:01:52.5]} 7... Bg4 {[%clk 0:02:56.6]} 8. f3 {[%clk 0:01:39.1]} 8...
Bh5 {[%clk 0:02:56.7]} 9. g4 {[%clk 0:01:28.5]} 9... Bg6 {[%clk 0:02:56]} 10. h4
{[%clk 0:01:29.5]} 10... Bxd3 {[%clk 0:02:52.9]} 11. Qxd3 {[%clk 0:01:31.4]}
11... e6 {[%clk 0:02:51.7]} 12. Nge2 {[%clk 0:01:30.6]} 12... Be7 {[%clk
0:02:51.2]} 13. h5 {[%clk 0:01:31.5]} 13... h6 {[%clk 0:02:46.8]} 14. Kf2 {[%clk
0:01:32]} 14... Nh7 {[%clk 0:02:25.4]} 15. a3 {[%clk 0:01:31.7]} 15... Ng5
{[%clk 0:02:22.7]} 16. Bxg5 {[%clk 0:01:24.2]} 16... Bxg5 {[%clk 0:02:20.6]} 17.
f4 {[%clk 0:01:25.1]} 17... Bh4+ {[%clk 0:02:16.6]} 18. Kg2 {[%clk 0:01:25.9]}
18... Bf6 {[%clk 0:02:16.5]} 19. b4 {[%clk 0:01:24.5]} 19... Rc8 {[%clk
0:02:04]} 20. Rac1 {[%clk 0:01:25.2]} 20... O-O {[%clk 0:01:57]} 21. Rcg1 {[%clk
0:01:15.6]} 21... Be7 {[%clk 0:01:34.9]} 22. Kf2 {[%clk 0:00:48.7]} 22... f6
{[%clk 0:01:35]} 23. Ng3 {[%clk 0:00:43.3]} 23... Qd7 {[%clk 0:01:23.5]} 24.
Nce2 {[%clk 0:00:33.6]} 24... Na7 {[%clk 0:01:19.3]} 25. Rc1 {[%clk 0:00:32.1]}
25... Nb5 {[%clk 0:01:17.4]} 26. f5 {[%clk 0:00:27.8]} 26... e5 {[%clk
0:01:12.7]} 27. Rhd1 {[%clk 0:00:25.3]} 27... e4 {[%clk 0:01:10.5]} 28. Qb3
{[%clk 0:00:24.8]} 28... Nc7 {[%clk 0:00:52.9]} 29. Nxe4 {[%clk 0:00:21.6]}
29... Kh7 {[%clk 0:00:51.4]} 30. Nc5 {[%clk 0:00:19.6]} 30... Bxc5 {[%clk
0:00:51.9]} 31. Rxc5 {[%clk 0:00:21.3]} 31... b6 {[%clk 0:00:52.3]} 32. Rc3
{[%clk 0:00:18.8]} 32... Rce8 {[%clk 0:00:50.5]} 33. a4 {[%clk 0:00:16.9]} 33...
Re7 {[%clk 0:00:47.3]} 34. Nf4 {[%clk 0:00:17.7]} 34... Rfe8 {[%clk 0:00:29.5]}
35. Rdc1 {[%clk 0:00:17.9]} 35... Qd6 {[%clk 0:00:30]} 36. Qc2 {[%clk
0:00:11.9]} 36... Rxe3 {[%clk 0:00:27.6]} 37. Rxe3 {[%clk 0:00:06.3]} 37...
Qxf4+ {[%clk 0:00:27.3]} 38. Rf3 {[%clk 0:00:07.4]} 38... Qxd4+ {[%clk
0:00:26.9]} 39. Kg3 {[%clk 0:00:08.8]} 39... Qe5+ {[%clk 0:00:23.3]} 40. Kh3
{[%clk 0:00:08.1]} 40... Re7 {[%clk 0:00:21.8]} 41. Qc6 {[%clk 0:00:05.6]} 41...
d4 {[%clk 0:00:21.3]} 42. Qxb6 {[%clk 0:00:05.3]} 42... Nd5 {[%clk 0:00:21.9]}
43. Qc5 {[%clk 0:00:05]} 43... Nf4+ {[%clk 0:00:22]} 44. Rxf4 {[%clk 0:00:05.3]}
44... Qxf4 {[%clk 0:00:21.6]} 45. Qxe7 {[%clk 0:00:06.4]} 45... Qxc1 {[%clk
0:00:21.7]} 46. Qf7 {[%clk 0:00:05.5]} 46... Qe3+ {[%clk 0:00:21.9]} 47. Kg2
{[%clk 0:00:06.4]} 47... Qe2+ {[%clk 0:00:22.5]} 48. Kg3 {[%clk 0:00:07.2]}
48... Qe1+ {[%clk 0:00:22.1]} 49. Kf4 {[%clk 0:00:06.5]} 49... Qe3# {[%clk
0:00:20.9]} 0-1

[Event "*** Titled Tuesday Blitz"]
[Site "Chess.com"]
[Date "2018.11.06"]
[Round "5"]
[White "wadsy27"]
[Black "xamax2000"]
[Result "1/2-1/2"]
[WhiteElo "2353"]
[BlackElo "2478"]
[TimeControl "180+2"]
[EndTime "14:08:11 PST"]
[Termination "Game drawn - insufficient material"]

1. Nf3 {[%clk 0:03:00.1]} 1... Nf6 {[%clk 0:02:59.9]} 2. g3 {[%clk 0:03:01.2]}
2... g6 {[%clk 0:03:00.7]} 3. Bg2 {[%clk 0:03:02.2]} 3... Bg7 {[%clk 0:03:02.2]}
4. c4 {[%clk 0:03:03.8]} 4... O-O {[%clk 0:03:03.1]} 5. O-O {[%clk 0:03:05]}
5... d6 {[%clk 0:03:04.7]} 6. Nc3 {[%clk 0:03:05.1]} 6... Nc6 {[%clk 0:03:06.2]}
7. d3 {[%clk 0:03:04.7]} 7... e5 {[%clk 0:03:07]} 8. Rb1 {[%clk 0:03:05.8]} 8...
a5 {[%clk 0:03:08.5]} 9. a3 {[%clk 0:03:06.5]} 9... Re8 {[%clk 0:03:09.5]} 10.
b4 {[%clk 0:03:06.1]} 10... axb4 {[%clk 0:03:11.4]} 11. axb4 {[%clk 0:03:07]}
11... e4 {[%clk 0:03:13.3]} 12. dxe4 {[%clk 0:02:42.8]} 12... Nxe4 {[%clk
0:03:15.2]} 13. Nxe4 {[%clk 0:02:43.7]} 13... Rxe4 {[%clk 0:03:14.6]} 14. b5
{[%clk 0:02:36.1]} 14... Nd4 {[%clk 0:02:35.2]} 15. Nxd4 {[%clk 0:02:09.6]}
15... Rxd4 {[%clk 0:02:32.2]} 16. Qb3 {[%clk 0:02:09.7]} 16... Be6 {[%clk
0:02:12]} 17. Bd5 {[%clk 0:02:02.5]} 17... Bxd5 {[%clk 0:01:43.8]} 18. cxd5
{[%clk 0:02:02.2]} 18... Qe7 {[%clk 0:01:39]} 19. Be3 {[%clk 0:02:02.5]} 19...
Re4 {[%clk 0:00:56.3]} 20. Rfc1 {[%clk 0:02:02.3]} 20... b6 {[%clk 0:00:56.2]}
21. Qc2 {[%clk 0:01:43.1]} 21... Ra7 {[%clk 0:00:50.2]} 22. Rb3 {[%clk
0:01:39.6]} 22... h5 {[%clk 0:00:49.8]} 23. h4 {[%clk 0:01:33.8]} 23... Bd4
{[%clk 0:00:44.3]} 24. Bxd4 {[%clk 0:01:11.1]} 24... Rxd4 {[%clk 0:00:46.2]} 25.
Rd3 {[%clk 0:01:08.5]} 25... Re4 {[%clk 0:00:44.1]} 26. e3 {[%clk 0:01:05.4]}
26... Rg4 {[%clk 0:00:38.3]} 27. Rc3 {[%clk 0:00:58.6]} 27... Qxh4 {[%clk
0:00:11.7]} 28. Rxc7 {[%clk 0:00:58.5]} 28... Raa4 {[%clk 0:00:07.4]} 29. Kg2
{[%clk 0:00:39.6]} 29... Qg5 {[%clk 0:00:08.6]} 30. Qc3 {[%clk 0:00:25.4]} 30...
Qxd5+ {[%clk 0:00:08.3]} 31. Kg1 {[%clk 0:00:24.7]} 31... Qe5 {[%clk 0:00:05.3]}
32. Qxe5 {[%clk 0:00:21.7]} 32... dxe5 {[%clk 0:00:07.2]} 33. Rb7 {[%clk
0:00:21.3]} 33... h4 {[%clk 0:00:07.8]} 34. Rc8+ {[%clk 0:00:21.6]} 34... Kg7
{[%clk 0:00:08.4]} 35. Kg2 {[%clk 0:00:22.2]} 35... hxg3 {[%clk 0:00:09.4]} 36.
fxg3 {[%clk 0:00:23.3]} 36... Rg5 {[%clk 0:00:09.4]} 37. Rcc7 {[%clk 0:00:22.2]}
37... Ra2+ {[%clk 0:00:10.6]} 38. Kf3 {[%clk 0:00:20.2]} 38... Rf5+ {[%clk
0:00:11.9]} 39. Ke4 {[%clk 0:00:20.9]} 39... Rg2 {[%clk 0:00:13.1]} 40. Rxb6
{[%clk 0:00:21.1]} 40... Rxg3 {[%clk 0:00:14.6]} 41. Rbb7 {[%clk 0:00:21.9]}
41... g5 {[%clk 0:00:13.6]} 42. b6 {[%clk 0:00:22.7]} 42... Rf6 {[%clk
0:00:12.6]} 43. Rb8 {[%clk 0:00:21.9]} 43... Rg1 {[%clk 0:00:11.9]} 44. b7
{[%clk 0:00:22.9]} 44... Rb1 {[%clk 0:00:13.2]} 45. Rd8 {[%clk 0:00:21.3]} 45...
Rfb6 {[%clk 0:00:14.4]} 46. Rdd7 {[%clk 0:00:22.5]} 46... Kg6 {[%clk 0:00:15.2]}
47. Rxf7 {[%clk 0:00:23.2]} 47... Kh5 {[%clk 0:00:16.5]} 48. Rh7+ {[%clk
0:00:24]} 48... Kg4 {[%clk 0:00:17.7]} 49. Kxe5 {[%clk 0:00:25.2]} 49... R1b3
{[%clk 0:00:17.9]} 50. e4 {[%clk 0:00:26]} 50... Kf3 {[%clk 0:00:19.2]} 51. Rh3+
{[%clk 0:00:25.2]} 51... Kg4 {[%clk 0:00:16.2]} 52. Rxb3 {[%clk 0:00:26.2]}
52... Rxb3 {[%clk 0:00:18.1]} 53. Kf6 {[%clk 0:00:26.5]} 53... Rb6+ {[%clk
0:00:19.1]} 54. Kf7 {[%clk 0:00:26.1]} 54... Kf4 {[%clk 0:00:20]} 55. Ke7 {[%clk
0:00:18.2]} 55... g4 {[%clk 0:00:21.1]} 56. Kd7 {[%clk 0:00:18]} 56... g3 {[%clk
0:00:21.8]} 57. Kc8 {[%clk 0:00:18.4]} 57... Kxe4 {[%clk 0:00:22.6]} 58. Rg7
{[%clk 0:00:18.1]} 58... Kf3 {[%clk 0:00:23]} 59. b8=Q {[%clk 0:00:19]} 59...
Rxb8+ {[%clk 0:00:23.6]} 60. Kxb8 {[%clk 0:00:20.9]} 60... g2 {[%clk 0:00:25.4]}
61. Rxg2 {[%clk 0:00:21.7]} 61... Kxg2 {[%clk 0:00:26.4]} 1/2-1/2